[Event "12th WLC Weekend 2022"]
[Site "Eindhoven"]
[Date "2022.05.14"]
[Round "2.10"]
[White "Elgersma, Onno"]
[Black "Broekhuis, Jan"]
[Result "1-0"]
[ECO "C11"]
[WhiteElo "2303"]
[BlackElo "1845"]
[Annotator "TA"]
[PlyCount "35"]
[EventDate "2022.05.13"]
[EventType "swiss"]
[EventCountry "NED"]
[SourceTitle "playchess.com"]
[Source "ChessBase"]
[SourceQuality "1"]
[TimeControl "5400+30"]

{[%evp 16,35,10,14,30,0,0,0,29,0,0,0,0,0,0,0,0,0,0,-43,839,833]} 1. e4 {[%emt 0:00:04]} e6 {[%emt 0:00:26]} 2. d4 {[%emt 0:00:24]} d5 {[%emt 0:00:37]} 3. Nc3 {[%emt 0:00:24]} Nf6 {[%emt 0:00:42]} 4. e5 {[%emt 0:01:00]} Nfd7 {[%emt 0:02:29]} 5. f4 {[%emt 0:00:13]} a6 {[%emt 0:01:13]} 6. Nf3 {[%emt 0:01:19]} c5 {[%emt 0:01:16]} 7. Be3 {[%emt 0:00:33]} Nc6 {[%emt 0:01:36]} 8. Qd2 {[%emt 0:01:00]} b5 {[%emt 0:02:55]} 9. a3 {[%emt 0:04:21]} Bb7 {[%emt 0:03:18] C11: French: Classical System: 4 e5 and 4 Bg5 dxe4.} 10. Be2 {[%emt 0:06:21]} Rc8 {[%emt 0:01:53]} 11. O-O {[%emt 0:03:45]} Qc7 {[%emt 0:03:06] [#] The position is equal.} 12. Rad1 $146 {[%emt 0:10:37][%cal Of4f5]} (12. f5 {feels hotter.} cxd4 13. Nxd4 Qxe5 14. fxe6 fxe6 15. Bg4) ({Predecessor:} 12. Rae1 Be7 13. Bd3 cxd4 14. Nxd4 Nxd4 15. Bxd4 Nc5 16. Be2 Ne4 17. Nxe4 dxe4 18. c3 {½-½ (31) Hansen,J (1909)-Olsen,B (1832) Frederiksberg 2019}) 12... Nxd4 {[%emt 0:05:31]} 13. Nxd4 {[%emt 0:01:02]} cxd4 {[%emt 0:00:12]} 14. Bxd4 {[%emt 0:00:05]} Bc5 {[%emt 0:01:43]} 15. Kh1 {[%emt 0:07:12]} Bxd4 {[%emt 0:01:07]} 16. Qxd4 {[%emt 0:00:05]} Qc5 {[%emt 0:00:12]} 17. Ne4 {[%emt 0:12:21]} O-O $2 {[%emt 0:02:17][%mdl 8192] [#]} 18. Nxc5 {[%emt 0:00:50] Weighted Error Value: White=0.16 (very precise) /Black=0.12 (very precise)} 1-0

[Event "12th WLC Weekend 2022"]
[Site "Eindhoven"]
[Date "2022.05.14"]
[Round "2.11"]
[White "Geboers, Jimmy"]
[Black "Bruil, Rembrandt"]
[Result "0-1"]
[ECO "E14"]
[WhiteElo "1845"]
[BlackElo "2122"]
[Annotator "TA"]
[PlyCount "125"]
[EventDate "2022.05.13"]
[EventType "swiss"]
[EventCountry "NED"]
[SourceTitle "playchess.com"]
[Source "ChessBase"]
[SourceQuality "1"]
[TimeControl "5400+30"]

{[%evp 23,125,0,0,0,27,24,23,7,37,28,38,45,27,20,35,12,16,17,17,16,18,0,0,0,12,0,7,-44,-6,-68,-85,-82,-45,-87,-84,-91,-87,-131,-134,-134,-134,-126,-126,-132,-121,-131,-125,-134,-132,-126,-126,-127,-120,-117,-103,-112,-97,-125,-122,-161,-126,-268,-250,-463,-453,-433,-408,-977,-970,-928,-935,-849,-822,-806,-772,-806,-802,-614,-587,-1054,-1027,-1257,-1222,-1360,-1327,-1321,-1164,-893,-1108,-1422,-1316,-2829,-2139,-5206,-4997,-2347,-1996,-5454,-3289,-29980,-29982,-29983,-29984,-29986]} 1. d4 {[%emt 0:00:02]} d5 {[%emt 0:00:03]} 2. c4 {[%emt 0:00:06]} e6 {[%emt 0:00:04]} 3. Nc3 {[%emt 0:00:05]} Be7 {[%emt 0:00:03]} 4. e3 {[%emt 0:00:08]} Nf6 {[%emt 0:00:09]} 5. Nf3 {[%emt 0:00:13]} O-O {[%emt 0:00:16]} 6. Bd3 {[%emt 0:00:17]} b6 {[%emt 0:02:21]} 7. O-O {[%emt 0:01:42]} Bb7 {[%emt 0:00:02]} 8. b3 {[%emt 0:02:21]} Nbd7 {[%emt 0:01:21]} 9. Bb2 {[%emt 0:00:29]} c5 {[%emt 0:02:30]} 10. cxd5 {[%emt 0:07:02]} exd5 {[%emt 0:00:16]} 11. dxc5 {[%emt 0:04:12]} bxc5 {[%emt 0:00:05]} 12. Qe2 {[%emt 0:01:38]} Re8 {[%emt 0:05:24]} 13. Ba6 {[%emt 0:05:17] [#] E14: Queen's Indian: Classical Variation (4 e3).} Qb6 $146 {[%emt 0:01:44]} ({Predecessor:} 13... Bc6 14. Rfd1 Rb8 15. Bb5 Rxb5 16. Nxb5 Qb8 17. Na3 Bd6 18. h3 Ne4 19. Rac1 Re6 20. Rc2 a5 {½-½ (64) Votruba,P-Renman,N (2400) Prague 1979}) 14. Bxb7 {[%emt 0:00:22]} Qxb7 {[%emt 0:00:02]} 15. Qb5 {[%emt 0:01:53] White has an edge.} Qc7 {[%emt 0:04:31]} 16. Rfd1 {[%emt 0:03:53]} Rab8 {[%emt 0:06:47]} 17. Qd3 {[%emt 0:09:34]} Nb6 {[%emt 0:13:49]} 18. Nb5 {[%emt 0:04:50]} Qd7 {[%emt 0:08:15] [#] ...c4 is the strong threat.} (18... Qb7 {is interesting.} 19. Bxf6 Bxf6 20. Nd6 Qe7) 19. Bxf6 {[%emt 0:06:50]} Bxf6 {[%emt 0:00:14]} 20. Rac1 {[%emt 0:00:09]} Rbc8 {[%emt 0:06:07]} 21. Nc3 {[%emt 0:01:54][%cal Rc3d5]} Red8 {[%emt 0:01:28]} 22. Qb5 {[%emt 0:01:35]} Qxb5 {[%emt 0:06:25]} 23. Nxb5 {[%emt 0:00:09]} a6 {[%emt 0:00:41]} 24. Nc3 {[%emt 0:00:07]} Kf8 {[%emt 0:00:37]} 25. a4 {[%emt 0:02:42]} ({Better is} 25. g3 $11) 25... a5 {[%emt 0:01:32]} 26. Kf1 {[%emt 0:09:00]} (26. Nb5 $11) 26... c4 $15 {[%emt 0:05:16]} 27. bxc4 {[%emt 0:01:30]} Rxc4 {[%emt 0:00:05]} 28. Nd4 {[%emt 0:02:10][%cal Oc1b1]} Rdc8 $36 {[%emt 0:06:48][%mdl 2048] Black is on the roll.} 29. Nce2 {[%emt 0:00:24]} Nxa4 {[%emt 0:01:14]} 30. Nb3 {[%emt 0:01:07]} Rxc1 {[%emt 0:07:35] Black is more active.} 31. Rxc1 {[%emt 0:00:20]} Rxc1+ {[%emt 0:00:10]} 32. Nexc1 $17 {[%emt 0:00:11][%mdl 4096] Endgame KBN-KNN} Bd8 {[%emt 0:00:19]} 33. Ke2 {[%emt 0:03:41]} Nb2 {[%emt 0:01:26]} 34. Kd2 {[%emt 0:01:05]} Bb6 {[%emt 0:02:54]} 35. Ne2 {[%emt 0:02:06]} Nc4+ {[%emt 0:01:15]} 36. Kc3 {[%emt 0:00:24]} Nd6 {[%emt 0:00:08]} 37. Nd2 {[%emt 0:00:36]} Ke7 {[%emt 0:00:48]} 38. Nf4 {[%emt 0:00:12]} Nb5+ {[%emt 0:00:02]} 39. Kb3 {[%emt 0:00:36]} Kd6 {[%emt 0:00:05]} 40. Ne2 {[%emt 0:04:40]} Kc6 {[%emt 0:03:40]} 41. Ka4 {[%emt 0:00:38]} Nd6 {[%emt 0:01:35]} 42. Nb3 {[%emt 0:01:32] White does not recover from this.} (42. Nf3 $17) 42... Ne4 $19 {[%emt 0:02:24]} 43. f3 $2 {[%emt 0:02:20]} (43. Nbd4+ Kc5 44. f3) 43... Nc5+ {[%emt 0:00:40]} 44. Nxc5 {[%emt 0:00:08]} Kxc5 {[%emt 0:00:10] KB-KN} ({Worse is} 44... Bxc5 45. Kxa5 Bxe3 46. Kb4 $17) 45. Nd4 {[%emt 0:00:20]} (45. Kb3 $142 a4+ 46. Kc3 (46. Kxa4 $2 Kc4 $19)) 45... Kc4 {[%emt 0:00:30]} 46. Nf5 {[%emt 0:00:29]} g6 {[%emt 0:00:32]} 47. Nd6+ {[%emt 0:00:05]} Kd3 {[%emt 0:00:07]} 48. e4 {[%emt 0:00:54]} dxe4 {[%emt 0:01:55]} 49. Nxe4 {[%emt 0:00:30]} Bd8 {[%emt 0:00:32]} 50. Nd6 {[%emt 0:00:09]} f6 {[%emt 0:00:24]} 51. Nb7 {[%emt 0:01:33]} Bc7 {[%emt 0:01:09]} 52. Nc5+ {[%emt 0:00:27]} Ke2 {[%emt 0:00:18]} 53. Ne6 {[%emt 0:00:09]} Bd6 {[%emt 0:05:57]} 54. f4 {[%emt 0:05:18]} Bb4 {[%emt 0:00:51]} 55. g4 {[%emt 0:00:35]} Kf3 {[%emt 0:01:21]} 56. g5 {[%emt 0:03:01]} f5 {[%emt 0:00:05][%cal Bf6f5,Bf5f4,Bf4f3][%mdl 32] [#] Hoping for ...Kg4.} 57. Kb3 {[%emt 0:00:59]} Kg4 {[%emt 0:00:23] aiming for ...Bd6.} 58. Kc4 {[%emt 0:00:30]} Bd6 {[%emt 0:01:57]} 59. Kd5 {[%emt 0:00:42]} Bxf4 {[%emt 0:00:07]} 60. Nf8 {[%emt 0:00:12]} Bxg5 {[%emt 0:00:15]} 61. Nxh7 {[%emt 0:00:07]} f4 {[%emt 0:01:51]} 62. Nf8 {[%emt 0:01:50]} f3 {[%emt 0:00:34]} 63. Kd4 {[%emt 0:00:53] Weighted Error Value: White=0.86/Black=0.13 (very precise)} 0-1

[Event "12th WLC Weekend 2022"]
[Site "Eindhoven"]
[Date "2022.05.14"]
[Round "2.12"]
[White "Zepeda, Lorena"]
[Black "Dekker, Marvin"]
[Result "1-0"]
[ECO "B90"]
[WhiteElo "2130"]
[BlackElo "2014"]
[Annotator "TA"]
[PlyCount "40"]
[EventDate "2022.05.13"]
[EventType "swiss"]
[EventCountry "NED"]
[SourceTitle "playchess.com"]
[Source "ChessBase"]
[SourceQuality "1"]
[TimeControl "5400+30"]

{[%evp 23,27,20,29,25,52,41]} 1. e4 {[%emt 0:00:04]} c5 {[%emt 0:00:10]} 2. Nf3 {[%emt 0:00:05]} d6 {[%emt 0:00:04]} 3. d4 {[%emt 0:00:06]} cxd4 {[%emt 0:00:05]} 4. Nxd4 {[%emt 0:00:06]} Nf6 {[%emt 0:00:03]} 5. Nc3 {[%emt 0:00:06]} a6 {[%emt 0:00:04]} 6. Be3 {[%emt 0:00:09]} e5 {[%emt 0:00:07]} 7. Nb3 {[%emt 0:00:06]} Be6 {[%emt 0:00:05]} 8. f3 {[%emt 0:00:25]} Be7 {[%emt 0:00:34]} 9. Qd2 {[%emt 0:00:25]} O-O {[%emt 0:01:23]} 10. O-O-O {[%emt 0:03:42]} Nbd7 {[%emt 0:00:11]} 11. g4 {[%emt 0:00:28][%cal Bg2g4,Bg4g5][%mdl 32]} b5 {[%emt 0:00:05]} 12. g5 {[%emt 0:01:07]} b4 {[%emt 0:00:31] 12...Nh5 gains popularity.} 13. Na4 {[%emt 0:04:35] B90: Sicilian Najdorf: Unusual White 6th moves, 6 Be3 Ng4 and 6 Be3 e5.} Ne8 {[%emt 0:03:46]} 14. h4 {[%emt 0:04:06] [#]} {Predecessor:} Rb8 $146 15. Qd3 f6 16. f4 exf4 17. Bxf4 Ne5 18. Qg3 Qc7 19. Nd4 Bg4 20. Rd2 Bd7 {1-0 (37) Dunlop,G (2511)-Henri,J (2361) ICCF email 2017} 1-0

[Event "12th WLC Weekend 2022"]
[Site "Eindhoven"]
[Date "2022.05.14"]
[Round "2.13"]
[White "Van Jaarsveld, Henk"]
[Black "Roebers, Jan"]
[Result "0-1"]
[ECO "C31"]
[WhiteElo "1832"]
[BlackElo "2126"]
[Annotator "TA"]
[PlyCount "58"]
[EventDate "2022.05.13"]
[EventType "swiss"]
[EventCountry "NED"]
[SourceTitle "playchess.com"]
[Source "ChessBase"]
[SourceQuality "1"]
[TimeControl "5400+30"]

{[%evp 9,58,-22,-39,-45,-22,-10,-16,-17,-19,-23,0,-55,-56,-74,-73,-77,-60,-86,-76,-110,-110,-128,-132,-333,-350,-343,-363,-345,-341,-793,-776,-1706,-1430,-29976,-29977,-29977,-29971,-6287,-5514,-1158,-1156,-1153,-1136,-1012,-823,-812,-818,-29986,-29987,-29988,-29989]} 1. e4 {[%emt 0:00:02]} e5 {[%emt 0:00:06]} 2. f4 {[%emt 0:00:04]} d5 {[%emt 0:03:20]} 3. exd5 {[%emt 0:00:09]} c6 {[%emt 0:00:05]} 4. dxc6 {[%emt 0:10:15]} Nxc6 {[%emt 0:00:27]} 5. Nc3 {[%emt 0:02:53]} exf4 {[%emt 0:05:07]} 6. Nf3 {[%emt 0:00:39] Inhibits Qh4+. C31: Falkbeer Counter Gambit: 3 exd5 c6 and 3...e4 sidelines..} Bd6 {[%emt 0:05:45]} 7. Bb5 {[%emt 0:08:36]} Nge7 {[%emt 0:01:07]} 8. d4 {[%emt 0:03:19] The position is equal.} O-O {[%emt 0:03:51]} 9. O-O {[%emt 0:00:33] [#]} Qb6 $146 {[%emt 0:11:43]} ({Predecessor:} 9... Bg4 10. Ne4 Bc7 11. c3 Re8 12. Bd3 h6 13. Qc2 Nd5 14. Bd2 Bh5 15. Rae1 Bg6 {1-0 (89) Niehaus,F (2163)-Boettcher,P (2076) Berlin 2019}) 10. Kh1 {[%emt 0:10:59]} ({White should try} 10. Be2 $11) 10... Bg4 $15 {[%emt 0:04:46]} 11. Bxc6 {[%emt 0:06:55]} bxc6 {[%emt 0:02:38]} 12. Ne4 {[%emt 0:03:30]} Bc7 {[%emt 0:01:39] Black is more active.} 13. c3 {[%emt 0:04:03]} Rfe8 {[%emt 0:03:56]} 14. Qb3 {[%emt 0:11:14]} Nd5 {[%emt 0:02:55]} 15. Nc5 {[%emt 0:09:11]} Bd6 {[%emt 0:18:49]} 16. h3 $2 {[%emt 0:10:24] [#] This costs White the game.} (16. Nd3 $17 {was necessary.}) 16... Bxf3 $19 {[%emt 0:01:49]} 17. gxf3 {[%emt 0:00:35]} Bxc5 {[%emt 0:00:47]} 18. dxc5 {[%emt 0:00:07]} Qxc5 {[%emt 0:00:30]} 19. Bd2 $2 {[%emt 0:01:32]} (19. Qc2) 19... Re2 {[%emt 0:06:04]} 20. Rad1 {[%emt 0:00:50]} Nb6 {[%emt 0:04:38]} 21. Be1 {[%emt 0:05:06]} Qf5 {[%emt 0:01:47]} 22. Rf2 {[%emt 0:00:28]} Qxh3+ {[%emt 0:02:31]} 23. Kg1 {[%emt 0:00:07]} Qg3+ {[%emt 0:00:40]} 24. Kf1 {[%emt 0:00:12]} Rxf2+ {[%emt 0:00:29]} 25. Bxf2 {[%emt 0:00:08]} Qxf3 {[%emt 0:00:10] [#] Hoping for ...Re8.} 26. Re1 {[%emt 0:03:53]} Rd8 {[%emt 0:03:29] ( -> ...Qh3+)} 27. c4 {[%emt 0:03:40]} Qh1+ {[%emt 0:03:45]} 28. Bg1 {[%emt 0:00:09]} f3 {[%emt 0:00:53][%csl Gf3][%cal Rh1g2]} 29. Qc2 {[%emt 0:01:22]} Qh3+ {[%emt 0:00:10] Weighted Error Value: White=1.24/Black=0.23 (precise)} 0-1

[Event "12th WLC Weekend 2022"]
[Site "Eindhoven"]
[Date "2022.05.14"]
[Round "2.14"]
[White "Grooten, Tommy"]
[Black "Van de Put, Jeroen"]
[Result "1-0"]
[ECO "B80"]
[WhiteElo "1847"]
[BlackElo "1987"]
[Annotator "TA"]
[PlyCount "67"]
[EventDate "2022.05.13"]
[EventType "swiss"]
[EventCountry "NED"]
[SourceTitle "playchess.com"]
[Source "ChessBase"]
[SourceQuality "1"]
[TimeControl "5400+30"]

{[%evp 17,67,42,41,-7,23,-85,-37,-52,-60,-47,-65,-116,-112,-118,-101,-168,-163,-174,-171,-166,0,-105,-101,-119,-33,0,0,-185,-39,-39,-45,-304,-70,-429,-426,-441,-333,-564,-558,-549,-527,-536,-529,-516,-527,-545,0,0,29993,29994,29997,29998]} 1. e4 {[%emt 0:00:04]} c5 {[%emt 0:00:07]} 2. Nf3 {[%emt 0:00:05]} d6 {[%emt 0:00:32]} 3. d4 {[%emt 0:00:06]} cxd4 {[%emt 0:00:03]} 4. Nxd4 {[%emt 0:00:07]} Nf6 {[%emt 0:00:09]} 5. Nc3 {[%emt 0:00:07]} e6 {[%emt 0:00:06]} 6. Be3 {[%emt 0:00:14]} Nc6 {[%emt 0:03:39]} 7. f3 {[%emt 0:01:13]} Be7 {[%emt 0:08:34]} 8. Qd2 {[%emt 0:00:23]} O-O {[%emt 0:00:18]} 9. O-O-O {[%emt 0:00:11]} d5 {[%emt 0:04:27]} 10. Qf2 {[%emt 0:01:02] [#] B80: Sicilian Scheveningen: 6 g3 and 6 Be3, including English Attack.} (10. Be2 $14) 10... Bb4 $146 {[%emt 0:09:50]} ({Predecessor:} 10... e5 11. Nxc6 bxc6 12. exd5 cxd5 13. Qg3 Qd6 14. f4 exf4 15. Bxf4 Qc6 16. Be5 Be6 17. Bb5 Qb7 {1-0 (34) Rudd,J (2310)-Morrison,G (2336) Sunningdale 2006}) 11. Nce2 {[%emt 0:01:54]} (11. exd5 $11 exd5 12. Qd2) 11... Qa5 {[%emt 0:02:47]} (11... e5 $17 12. Nxc6 bxc6) 12. Kb1 {[%emt 0:00:28] Black is slightly better.} dxe4 {[%emt 0:04:37]} 13. Nb3 {[%emt 0:00:54]} Qc7 {[%emt 0:02:49]} 14. Ng3 {[%emt 0:00:47]} (14. a3 $15 Be7 15. Nc3) 14... exf3 $17 {[%emt 0:00:32]} 15. gxf3 {[%emt 0:00:15]} Nd5 {[%emt 0:02:14]} 16. Rxd5 {[%emt 0:00:21]} exd5 $19 {[%emt 0:00:12]} 17. Rg1 {[%emt 0:00:27]} Kh8 {[%emt 0:19:12]} 18. Bd3 {[%emt 0:02:43]} Bd6 $2 {[%emt 0:02:40]} (18... Be7 $19 {Hoping for ...Ne5.} 19. Ne2 Bf6) 19. Nh5 {[%emt 0:00:25]} (19. Bxh7 $1 $11 {was the only way to keep the balance.} Bf4 20. Bc5) 19... g6 $17 {[%emt 0:01:11]} 20. Qh4 {[%emt 0:00:31] Intending Qf6+ and mate.} Be5 {[%emt 0:10:16] Inhibits Qf6+.} (20... Be7 $1 $17 {[%cal Re7h4]} 21. Nf6 Bxf6 22. Qxf6+ Kg8) 21. f4 $15 {[%emt 0:03:26]} Qe7 {[%emt 0:05:46]} (21... gxh5 22. fxe5 Qxe5 23. Bxh7 $1 (23. Bf4 Qe7 $16) 23... Kxh7 24. Rg5 $1 Qxg5 25. Qxg5 $18) 22. Rg5 $2 {[%emt 0:02:51]} (22. Qxe7 $11 {and White is okay.} Nxe7 23. fxe5 gxh5 24. e6) 22... Bg7 {[%emt 0:05:59]} (22... Bxb2 23. Bc5 Qd8 24. Kxb2 $18 (24. Bxf8 Bc3 $11)) (22... Bd6 $19 23. Bd2 Bb4) 23. Bc5 {[%emt 0:00:55]} Qd8 {[%emt 0:02:30]} 24. a3 $2 {[%emt 0:12:35][%mdl 8192]} (24. Nxg7 $15 Kxg7 25. Nd4 (25. Bxf8+ Qxf8 26. Rxd5 Be6 $11)) 24... Re8 $2 {[%emt 0:02:07]} ({Don't blunder} 24... b6 $2 25. Bxf8 Bxf8 26. Qg3 $17) (24... gxh5 $19 25. Bxf8 Qxf8 26. Rxd5 Bg4) 25. Qg3 $2 {[%emt 0:06:03][%mdl 8192]} (25. Nxg7 $15 Kxg7 26. Qg3) 25... Bh6 $19 {[%emt 0:03:13]} 26. Qh4 {[%emt 0:02:45][%cal Ob3d4]} f5 {[%emt 0:04:08]} ({Don't go for} 26... gxh5 $2 27. Qxh5 Qf6 28. Qh4 $19) 27. Nd4 $2 {[%emt 0:01:48]} (27. Nf6 Qxf6 28. Qxh6) 27... Bxg5 {[%emt 0:01:11]} 28. fxg5 {[%emt 0:00:16][%cal Bf4g5,Bg5g6,Bg6f7][%mdl 32]} gxh5 {[%emt 0:02:09]} 29. Qxh5 {[%emt 0:01:25] Nxc6 is the strong threat.} Re1+ {[%emt 0:00:08]} 30. Ka2 {[%emt 0:00:18] Threatens to win with Nxc6.} Qe8 {[%emt 0:00:01]} 31. Qh6 {[%emt 0:00:45] Strongly threatening Nxc6.} Qf7 $2 {[%emt 0:01:20]} (31... Kg8 $19 32. g6 hxg6 33. Nxc6 bxc6) 32. Nxc6 $11 {[%emt 0:01:07] Threatening mate with g6. Chess con chili.} bxc6 $4 {[%emt 0:01:18][%mdl 8192] [#]} (32... Bd7 $11 33. Bd4+ Kg8) 33. g6 $1 {[%emt 0:00:25]} Re6 {[%emt 0:02:07]} 34. gxf7 {[%emt 0:00:40] A wild game.  Weighted Error Value: White=0.72/Black=0.81} 1-0

[Event "12th WLC Weekend 2022"]
[Site "Eindhoven"]
[Date "2022.05.14"]
[Round "2.15"]
[White "Weijers, Ralf"]
[Black "Cebula, Jerzy"]
[Result "1/2-1/2"]
[ECO "C56"]
[WhiteElo "1857"]
[BlackElo "1994"]
[Annotator "TA"]
[PlyCount "45"]
[EventDate "2022.05.13"]
[EventType "swiss"]
[EventCountry "NED"]
[SourceTitle "playchess.com"]
[Source "ChessBase"]
[SourceQuality "1"]
[TimeControl "5400+30"]

{[%evp 14,45,-102,-112,-105,-104,-88,-129,-142,-164,-145,-166,-121,-217,-217,-218,-151,-223,-108,-260,-253,-239,-95,-95,-92,-87,-88,-87,-103,-84,-77,-93,13,-24]} 1. e4 {[%emt 0:00:02]} e5 {[%emt 0:00:09]} 2. Nf3 {[%emt 0:00:04]} Nc6 {[%emt 0:00:07]} 3. Bc4 {[%emt 0:00:04]} Nf6 {[%emt 0:00:10]} 4. d4 {[%emt 0:00:04]} exd4 {[%emt 0:01:03]} 5. e5 {[%emt 0:00:35]} Ng4 {[%emt 0:01:38]} 6. Bxf7+ {[%emt 0:00:30]} Kxf7 {[%emt 0:00:16]} 7. Ng5+ {[%emt 0:00:04]} Kg8 {[%emt 0:00:12]} 8. Qxg4 {[%emt 0:00:07]} h6 {[%emt 0:01:04] C56: Two Knights: 4 d4 exd4 5 0-0 Nxe4.} 9. Nf3 {[%emt 0:07:27]} d6 $1 {[%emt 0:00:49][%cal Bd7d6,Bd6e5,Be5e4,Be4e3][%mdl 32]} 10. Qg3 {[%emt 0:10:46]} ({Wrong is} 10. e6 $2 Qf6 11. O-O Bxe6 $19) 10... dxe5 {[%emt 0:07:05] [#] Black is better.} 11. Nh4 $146 {[%emt 0:10:16]} ({Predecessor:} 11. Nxe5 Qf6 12. f4 Bf5 13. Qb3+ Kh7 14. O-O Bc5 15. Nd3 Bb6 16. Nd2 a5 17. a4 {½-½ (38) Voss,H (2081)-Kraemer,M (2216) Nordrheinwestfalen 2019}) 11... Qf6 {[%emt 0:09:37]} 12. O-O {[%emt 0:04:36]} Bd6 {[%emt 0:06:28] aiming for ...e4.} 13. f4 {[%emt 0:05:55] [#]} (13. Nd2 $17) 13... e4 $1 $19 {[%emt 0:15:26]} 14. Nd2 {[%emt 0:01:16][%cal Bb1d2,Bd2f3,Bf3d4][%mdl 32]} Qe6 {[%emt 0:09:48] And now ...Nb4 would win.} 15. Ng6 {[%emt 0:07:35]} (15. b3 $17 {might work better.}) 15... Rh7 {[%emt 0:02:36]} (15... e3 $19 {[%cal Oc6b4] and Black stays clearly on top.} 16. Nf3 Qe4 17. Nxh8 Kxh8) 16. Re1 $2 {[%emt 0:08:40]} (16. c3 $17) 16... e3 {[%emt 0:02:07] ...Nb4 is the strong threat.} 17. Nf3 {[%emt 0:00:08] [#]} Qg4 {[%emt 0:07:28]} (17... h5 $1 $19 {is more deadly. Hoping for ...Rh6.} 18. c3 Rh6) 18. c3 $17 {[%emt 0:03:25]} Kf7 {[%emt 0:11:59]} 19. Nge5+ {[%emt 0:04:30]} Bxe5 {[%emt 0:01:17]} 20. fxe5 {[%emt 0:00:56]} Qxg3 {[%emt 0:02:50]} 21. hxg3 {[%emt 0:00:11]} Bg4 {[%emt 0:00:13]} 22. Nxd4 {[%emt 0:01:18]} Nxe5 {[%emt 0:00:11]} ({Black should try} 22... Nxd4 $17 23. cxd4 e2) 23. Bxe3 {[%emt 0:00:30] Weighted Error Value: White=0.32/Black=0.33} 1/2-1/2

[Event "12th WLC Weekend 2022"]
[Site "Eindhoven"]
[Date "2022.05.14"]
[Round "2.16"]
[White "Krenning, Jasper"]
[Black "Straat, Evert-Jan"]
[Result "1/2-1/2"]
[ECO "C01"]
[WhiteElo "1736"]
[BlackElo "2034"]
[Annotator "TA"]
[PlyCount "36"]
[EventDate "2022.05.13"]
[EventType "swiss"]
[EventCountry "NED"]
[SourceTitle "playchess.com"]
[Source "ChessBase"]
[SourceQuality "1"]
[TimeControl "5400+30"]

{[%evp 9,36,-16,-16,-17,-21,-27,-14,-16,-26,-24,-8,-27,-14,-31,-6,-26,-31,-33,-22,-18,-19,-64,-56,-57,-33,-54,-26,-38,-31]} 1. e4 {[%emt 0:00:06]} e6 {[%emt 0:00:22]} 2. Nc3 {[%emt 0:00:16]} d5 {[%emt 0:00:45]} 3. exd5 {[%emt 0:00:19]} exd5 {[%emt 0:00:07]} 4. d4 {[%emt 0:00:12]} c6 {[%emt 0:04:14]} 5. g3 {[%emt 0:00:32]} Bd6 {[%emt 0:00:48]} 6. Bg2 {[%emt 0:00:36] C01: French: Exchange Variation.} Nf6 {[%emt 0:03:17]} 7. Nge2 {[%emt 0:00:21]} Bf5 {[%emt 0:03:02]} 8. O-O {[%emt 0:00:26] The position is equal.} O-O {[%emt 0:00:31]} 9. Bf4 {[%emt 0:00:34] [#]} a5 $146 {[%emt 0:01:43]} ({Predecessor:} 9... Na6 10. a3 Nc7 11. Re1 Ne6 12. Be5 Bxe5 13. dxe5 Ng4 14. Nd4 Qb6 15. Nce2 Bg6 {0-1 (36) Mikulas,A (1746)-Dlauchy,P (1828) Budapest 2013}) 10. Bxd6 {[%emt 0:04:17]} Qxd6 {[%emt 0:00:07]} 11. Nf4 {[%emt 0:00:31]} h6 {[%emt 0:04:16]} 12. a3 {[%emt 0:03:44]} Nbd7 {[%emt 0:03:21]} 13. Re1 {[%emt 0:02:36]} b5 {[%emt 0:09:52]} 14. Nd3 {[%emt 0:03:49]} Rfe8 {[%emt 0:05:12]} 15. f3 {[%emt 0:05:44]} Rxe1+ {[%emt 0:10:16]} 16. Nxe1 {[%emt 0:00:29]} Rb8 {[%emt 0:02:40]} 17. Nd3 {[%emt 0:05:45]} Qc7 {[%emt 0:20:40]} 18. Qd2 {[%emt 0:07:25]} Qa7 {[%emt 0:02:50] Weighted Error Value: White=0.11 (very precise) /Black=0.09 (flawless)} 1/2-1/2